Workbook

Sheet PASO_1
B5: Plantilla para cálculo de metas
B7: Datos del indicador
B9: Nombre del indicador:
B10: Nombre variable numerador:
B11: Nombre variable denominador:
B12: Método de cálculo
B13: Programa donde se le da seguimiento:
B14: Nivel del objetivo:
B16: Preguntas esenciales para la construcción de la meta
B18: 1 | C18: ¿Se cuenta con información histórica completa, incompleta o inexistente?
B20: Se puede utilizar alguno de estos métodos para estimar la meta
B22: =VLOOKUP($G$18,Hoja9!$C$3:$E$5,3,0) ->  | J22: =VLOOKUP($G$18,Hoja9!$C$3:$H$5,5,0) -> 
B24: =VLOOKUP(B22,Hoja9!E3:F5,2,0) ->  | J24: =VLOOKUP(J22,Hoja9!G3:H5,2,0) -> 
D47: Visualizador gráfico de datos (Capturar datos)
P48: META
B49: Capturar años de los cuales se tienen valores y de la meta deseada | P49: 2024
B50: Capturar valores históricos del numerador y denominador. O si desea encontrar la meta estimada de un valor absoluto, deje en blanco estas casillas y sólo capture los valores en la siguiente fila.
B52: Capturar valores históricos o aplicar fórmula
B69: Plantilla elaborada por el Departamento de Evaluación a partir de la información contenida en la Guía para el establecimiento y cálculo de línea base y metas del CONEVAL (pg. 19-33) https://www.coneval.org.mx/coordinacion/Documents/monitoreo/metodologia/guia_lineas_base_metas.pdf

Sheet Tend.
B2: Plantilla para cálculo de metas
B3: Método de tendencias
B5: Nombre del indicador: | C5: =PASO_1!$E$9 -> 0
B6: Nombre variable numerador: | C6: =PASO_1!$E$10 -> 0
B7: Nombre variable denominador: | C7: =PASO_1!$E$11 -> 0
B8: Método de cálculo | C8: =PASO_1!$E$12 -> 0
B9: Programa donde se le da seguimiento: | C9: =PASO_1!$E$13 -> 0
B10: Nivel del objetivo: | C10: =PASO_1!$E$14 -> 0
B11: NOTA: Este método requiere: -Contar con datos inmediatos anteriores al año meta deseado; -Contar con una serie de datos sin huecos; -Que haya la misma cantidad de datos antes de la Línea Base como después. | P11: META | V11: Año | W11: LB | X11: Valor | Z11: Meta | AA11: Año
C12: =PASO_1!C49 -> 0 | D12: =PASO_1!D49 -> 0 | E12: =PASO_1!E49 -> 0 | F12: =PASO_1!F49 -> 0 | G12: =PASO_1!G49 -> 0 | H12: =PASO_1!H49 -> 0 | I12: =PASO_1!I49 -> 0 | J12: =PASO_1!J49 -> 0 | K12: =PASO_1!K49 -> 0 | L12: =PASO_1!L49 -> 0 | M12: =PASO_1!M49 -> 0 | N12: =PASO_1!N49 -> 0 | O12: =PASO_1!O49 -> 0 | P12: =PASO_1!P49 -> 2024 | V12: =$C$12 -> 0 | W12: =$C$16 -> 0 | X12: =$C$15 -> 0 | Z12: =$C$17 -> 0 | AA12: =$C$12 -> 0
C13: =PASO_1!C50 -> 0 | D13: =PASO_1!D50 -> 0 | E13: =PASO_1!E50 -> 0 | F13: =PASO_1!F50 -> 0 | G13: =PASO_1!G50 -> 0 | H13: =PASO_1!H50 -> 0 | I13: =PASO_1!I50 -> 0 | J13: =PASO_1!J50 -> 0 | K13: =PASO_1!K50 -> 0 | L13: =PASO_1!L50 -> 0 | M13: =PASO_1!M50 -> 0 | N13: =PASO_1!N50 -> 0 | O13: =PASO_1!O50 -> 0 | P13: x | V13: =$D$12 -> 0 | W13: =$D$16 -> 0 | X13: =$D$15 -> 0 | Z13: =$D$17 -> 0 | AA13: =$D$12 -> 0
C14: =PASO_1!C51 -> 0 | D14: =PASO_1!D51 -> 0 | E14: =PASO_1!E51 -> 0 | F14: =PASO_1!F51 -> 0 | G14: =PASO_1!G51 -> 0 | H14: =PASO_1!H51 -> 0 | I14: =PASO_1!I51 -> 0 | J14: =PASO_1!J51 -> 0 | K14: =PASO_1!K51 -> 0 | L14: =PASO_1!L51 -> 0 | M14: =PASO_1!M51 -> 0 | N14: =PASO_1!N51 -> 0 | O14: =PASO_1!O51 -> 0 | P14: x | V14: =$E$12 -> 0 | W14: =$E$16 -> 0 | X14: =$E$15 -> 0 | Z14: =$E$17 -> 0 | AA14: =$E$12 -> 0
C15: =PASO_1!C52 -> 0 | D15: =PASO_1!D52 -> 0 | E15: =PASO_1!E52 -> 0 | F15: =PASO_1!F52 -> 0 | G15: =PASO_1!G52 -> 0 | H15: =PASO_1!H52 -> 0 | I15: =PASO_1!I52 -> 0 | J15: =PASO_1!J52 -> 0 | K15: =PASO_1!K52 -> 0 | L15: =PASO_1!L52 -> 0 | M15: =PASO_1!M52 -> 0 | N15: =PASO_1!N52 -> 0 | O15: =PASO_1!O52 -> 0 | P15: =Q30 ->  | V15: =$F$12 -> 0 | W15: =$F$16 -> 0 | X15: =$F$15 -> 0 | Z15: =$F$17 -> 0 | AA15: =$F$12 -> 0
A16: Capturar | B16: Poner un 1 en la línea base | V16: =$G$12 -> 0 | W16: =$G$16 -> 0 | X16: =$G$15 -> 0 | Z16: =$G$17 -> 0 | AA16: =$G$12 -> 0
A17: Capturar | B17: Poner un 1 debajo de la meta deseada | P17: 1 | V17: =$H$12 -> 0 | W17: =$H$16 -> 0 | X17: =$H$15 -> 0 | Z17: =$H$17 -> 0 | AA17: =$H$12 -> 0
A18: Capturar | B18: Poner un 0 donde se seleccionó la LB, y capturar el valor consecutivo hacia atrás y hacia adelante debajo de los años donde haya valores | V18: =$I$12 -> 0 | W18: =$I$16 -> 0 | X18: =$I$15 -> 0 | Z18: =$I$17 -> 0 | AA18: =$I$12 -> 0
A19: Capturar | B19: Poner un "1" debajo de la LB, y poner un uno en las casillas subsecuentes hasta llegar al año de la meta deseada (también poner 1 debajo de la meta desada) | V19: =$J$12 -> 0 | W19: =$J$16 -> 0 | X19: =$J$15 -> 0 | Z19: =$J$17 -> 0 | AA19: =$J$12 -> 0
B20: Cálculos del numerador | C20: =C15*C18 -> 0 | D20: 0 | E20: 0 | F20: =F15*F18 -> 0 | G20: =G15*G18 -> 0 | H20: =H15*H18 -> 0 | I20: 0 | J20: 0 | K20: 0 | L20: 0 | M20: 0 | N20: 0 | O20: 0 | V20: =$K$12 -> 0 | W20: =$K$16 -> 0 | X20: =$K$15 -> 0 | Z20: =$K$17 -> 0 | AA20: =$K$12 -> 0
B21: Cálculos del denominador | C21: =C18^2 -> 0 | D21: 0 | E21: 0 | F21: =F18^2 -> 0 | G21: 0 | H21: 0 | I21: 0 | J21: 0 | K21: 0 | L21: 0 | M21: 0 | N21: 0 | O21: 0 | P21: 0 | V21: =$L$12 -> 0 | W21: =$L$16 -> 0 | X21: =$L$15 -> 0 | Z21: =$L$17 -> 0 | AA21: =$L$12 -> 0
V22: =$M$12 -> 0 | W22: =$M$16 -> 0 | X22: =$M$15 -> 0 | Z22: =$M$17 -> 0 | AA22: =$M$12 -> 0
G23: =SUM(C20:O20) -> 0 | J23: =SUM(C19:P19) -> 0 | M23: =G23 -> 0 | O23: =J23 -> 0 | Q23: =((M23/M26)*(O23/O26)) ->  | V23: =$N$12 -> 0 | W23: =$N$16 -> 0 | X23: =$N$15 -> 0 | Z23: =$N$17 -> 0 | AA23: =$N$12 -> 0
N24: * | P24: = | V24: =$O$12 -> 0 | W24: =$O$16 -> 0 | X24: =$O$15 -> 0 | Z24: =$O$17 -> 0 | AA24: =$O$12 -> 0
V25: =$P$12 -> 2024 | W25: =$P$16 -> 0 | X25: =$P$15 ->  | Z25: =$P$17 -> 1 | AA25: =$P$12 -> 2024
G26: =SUM(C21:O21) -> 0 | J26: 2 | M26: =G26 -> 0 | O26: =J26 -> 2
Q29: Meta estimada
G30: =VLOOKUP(1,$W$12:$X$25,2,0) ->  | J30: =$Q$23 ->  | M30: =$G$30 ->  | O30: =$J$30 ->  | Q30: =M30+O30 -> 
N31: + | P31: =
L32: =VLOOKUP(1,$Z$12:$AA$25,2,0) -> 2024
L33: =CONCATENATE(D39, L32) -> 𝑦 ̂2024
D38: ∆ | E38: Cambio estimado del periodo de referencia | I38: 𝑦𝑏𝑎𝑠𝑒 | J38: Valor del indicador en el año base
D39: 𝑦 ̂ | E39: Valor del indicador esimado como meta | I39: z | J39: Valor de tiempo según año base
D40: 𝑦 | E40: Valor del indicador | I40: n | J40: Número de años desde el año base hasta el año a estimar

Sheet Incr.
B2: Plantilla para cálculo de metas
B3: Método Incremental
B5: Nombre del indicador: | C5: =PASO_1!$E$9 -> 0
B6: Nombre variable numerador: | C6: =PASO_1!$E$10 -> 0
B7: Nombre variable denominador: | C7: =PASO_1!$E$11 -> 0
B8: Método de cálculo | C8: =PASO_1!$E$12 -> 0
B9: Programa donde se le da seguimiento: | C9: =PASO_1!$E$13 -> 0
B10: Nivel del objetivo: | C10: =PASO_1!$E$14 -> 0
P11: META | W11: Meta | X11: Año
C12: =PASO_1!C49 -> 0 | D12: =PASO_1!D49 -> 0 | E12: =PASO_1!E49 -> 0 | F12: =PASO_1!F49 -> 0 | G12: =PASO_1!G49 -> 0 | H12: =PASO_1!H49 -> 0 | I12: =PASO_1!I49 -> 0 | J12: =PASO_1!J49 -> 0 | K12: =PASO_1!K49 -> 0 | L12: =PASO_1!L49 -> 0 | M12: =PASO_1!M49 -> 0 | N12: =PASO_1!N49 -> 0 | O12: =PASO_1!O49 -> 0 | P12: =PASO_1!P49 -> 2024 | W12: =$C$17 -> 0 | X12: =$C$12 -> 0
C13: =PASO_1!C50 -> 0 | D13: =PASO_1!D50 -> 0 | E13: =PASO_1!E50 -> 0 | F13: =PASO_1!F50 -> 0 | G13: =PASO_1!G50 -> 0 | H13: =PASO_1!H50 -> 0 | I13: =PASO_1!I50 -> 0 | J13: =PASO_1!J50 -> 0 | K13: =PASO_1!K50 -> 0 | L13: =PASO_1!L50 -> 0 | M13: =PASO_1!M50 -> 0 | N13: =PASO_1!N50 -> 0 | O13: =PASO_1!O50 -> 0 | P13: x | W13: =$D$17 -> 0 | X13: =$D$12 -> 0
C14: =PASO_1!C51 -> 0 | D14: =PASO_1!D51 -> 0 | E14: =PASO_1!E51 -> 0 | F14: =PASO_1!F51 -> 0 | G14: =PASO_1!G51 -> 0 | H14: =PASO_1!H51 -> 0 | I14: =PASO_1!I51 -> 0 | J14: =PASO_1!J51 -> 0 | K14: =PASO_1!K51 -> 0 | L14: =PASO_1!L51 -> 0 | M14: =PASO_1!M51 -> 0 | N14: =PASO_1!N51 -> 0 | O14: =PASO_1!O51 -> 0 | P14: x | W14: =$E$17 -> 0 | X14: =$E$12 -> 0
C15: =PASO_1!C52 -> 0 | D15: =PASO_1!D52 -> 0 | E15: =PASO_1!E52 -> 0 | F15: =PASO_1!F52 -> 0 | G15: =PASO_1!G52 -> 0 | H15: =PASO_1!H52 -> 0 | I15: =PASO_1!I52 -> 0 | J15: =PASO_1!J52 -> 0 | K15: =PASO_1!K52 -> 0 | L15: =PASO_1!L52 -> 0 | M15: =PASO_1!M52 -> 0 | N15: =PASO_1!N52 -> 0 | O15: =PASO_1!O52 -> 0 | P15: =N35 ->  | W15: =$F$17 -> 0 | X15: =$F$12 -> 0
A16: Capturar | B16: Poner un 1 en la línea base | W16: =$G$17 -> 0 | X16: =$G$12 -> 0
A17: Capturar | B17: Poner un 1 debajo de la meta deseada | P17: 1 | W17: =$H$17 -> 0 | X17: =$H$12 -> 0
C18: =IF(C15, ((D15/C15)-1), " ") ->  | D18: =IF(D15, ((E15/D15)-1), " ") ->  | E18: =IF(E15, ((F15/E15)-1), " ") ->  | F18: =IF(F15, ((G15/F15)-1), " ") ->  | O18: X | P18: X | W18: =$I$17 -> 0 | X18: =$I$12 -> 0
B19: T | C19: =COUNT(C18) -> 0 | D19: =COUNT(D18) -> 0 | E19: =COUNT(E18) -> 0 | F19: 0 | G19: 0 | H19: 0 | I19: 0 | J19: 0 | K19: 0 | L19: 0 | M19: 0 | N19: 0 | O19: X | P19: X | W19: =$J$17 -> 0 | X19: =$J$12 -> 0
W20: =$K$17 -> 0 | X20: =$K$12 -> 0
G21: =SUM(C18:N18) -> 0 | I21: =G21/G24 ->  | W21: =$L$17 -> 0 | X21: =$L$12 -> 0
H22: = | W22: =$M$17 -> 0 | X22: =$M$12 -> 0
W23: =$N$17 -> 0 | X23: =$N$12 -> 0
G24: =SUM(C19:N19) -> 0 | W24: =$O$17 -> 0 | X24: =$O$12 -> 0
W25: =$P$17 -> 1 | X25: =$P$12 -> 2024
H28: =LOOKUP(MAX(C15:O15)+1, C15:O15, C15:O15) -> 0 | L28: =$I$21 ->  | N28: 1 | P28: =L28+N28 -> 
M29: + | O29: =
G30: =VLOOKUP(1,$W$12:$X$25,2,0)-1 -> 2023
G31: =CONCATENATE(D44, G30) -> 𝑦 ̂2023
N34: Meta deseada
J35: =H28 -> 0 | L35: =P28 ->  | N35: =J35*L35 -> 
K36: * | M36: =
D42: ∆ | E42: Tasa de variación de las observaciones | I42: y1, y0 | J42: Observaciones del indicador en diferentes periodos de tiempo
D43: Δ ̅ | E43: Promedio de tasa de variación | I43: T | J43: Número total de tasas de variaciones (número de periodos de los que se tiene información menos 1)
D44: 𝑦 ̂ | E44: Valor estimado como meta | I44: Yt-1 | J44: Valor del periodo inmediato anterior al que se estimará como meta

Sheet Lineal
B2: Plantilla para cálculo de metas
B3: Extrapolación Lineal
B5: Nombre del indicador: | C5: =PASO_1!$E$9 -> 0
B6: Nombre variable numerador: | C6: =PASO_1!$E$10 -> 0
B7: Nombre variable denominador: | C7: =PASO_1!$E$11 -> 0
B8: Método de cálculo | C8: =PASO_1!$E$12 -> 0
B9: Programa donde se le da seguimiento: | C9: =PASO_1!$E$13 -> 0
B10: Nivel del objetivo: | C10: =PASO_1!$E$14 -> 0
P11: META | W11: Meta | X11: Año
C12: =PASO_1!C49 -> 0 | D12: =PASO_1!D49 -> 0 | E12: =PASO_1!E49 -> 0 | F12: =PASO_1!F49 -> 0 | G12: =PASO_1!G49 -> 0 | H12: =PASO_1!H49 -> 0 | I12: =PASO_1!I49 -> 0 | J12: =PASO_1!J49 -> 0 | K12: =PASO_1!K49 -> 0 | L12: =PASO_1!L49 -> 0 | M12: =PASO_1!M49 -> 0 | N12: =PASO_1!N49 -> 0 | O12: =PASO_1!O49 -> 0 | P12: =PASO_1!P49 -> 2024 | W12: =$C$17 -> 0 | X12: =$C$12 -> 0
C13: =PASO_1!C50 -> 0 | D13: =PASO_1!D50 -> 0 | E13: =PASO_1!E50 -> 0 | F13: =PASO_1!F50 -> 0 | G13: =PASO_1!G50 -> 0 | H13: =PASO_1!H50 -> 0 | I13: =PASO_1!I50 -> 0 | J13: =PASO_1!J50 -> 0 | K13: =PASO_1!K50 -> 0 | L13: =PASO_1!L50 -> 0 | M13: =PASO_1!M50 -> 0 | N13: =PASO_1!N50 -> 0 | O13: =PASO_1!O50 -> 0 | P13: x | W13: =$D$17 -> 0 | X13: =$D$12 -> 0
C14: =PASO_1!C51 -> 0 | D14: =PASO_1!D51 -> 0 | E14: =PASO_1!E51 -> 0 | F14: =PASO_1!F51 -> 0 | G14: =PASO_1!G51 -> 0 | H14: =PASO_1!H51 -> 0 | I14: =PASO_1!I51 -> 0 | J14: =PASO_1!J51 -> 0 | K14: =PASO_1!K51 -> 0 | L14: =PASO_1!L51 -> 0 | M14: =PASO_1!M51 -> 0 | N14: =PASO_1!N51 -> 0 | O14: =PASO_1!O51 -> 0 | P14: x | W14: =$E$17 -> 0 | X14: =$E$12 -> 0
C15: =PASO_1!C52 -> 0 | D15: =PASO_1!D52 -> 0 | E15: =PASO_1!E52 -> 0 | F15: =PASO_1!F52 -> 0 | G15: =PASO_1!G52 -> 0 | H15: =PASO_1!H52 -> 0 | I15: =PASO_1!I52 -> 0 | J15: =PASO_1!J52 -> 0 | K15: =PASO_1!K52 -> 0 | L15: =PASO_1!L52 -> 0 | M15: =PASO_1!M52 -> 0 | N15: =PASO_1!N52 -> 0 | O15: =PASO_1!O52 -> 0 | P15: =N42 ->  | W15: =$F$17 -> 0 | X15: =$F$12 -> 0
A16: Capturar | B16: Poner un 1 en la línea base | W16: =$G$17 -> 0 | X16: =$G$12 -> 0
A17: Capturar | B17: Poner un 1 debajo de la meta deseada | P17: 1 | W17: =$H$17 -> 0 | X17: =$H$12 -> 0
C18: =IF(C15, (C12*C15), " ") ->  | D18: =IF(D15, (D12*D15), " ") ->  | F18: =IF(F15, (F12*F15), " ") ->  | W18: =$I$17 -> 0 | X18: =$I$12 -> 0
B19: n | C19: =COUNT(C18) -> 0 | D19: =COUNT(D18) -> 0 | E19: 0 | F19: 0 | G19: 0 | H19: 0 | I19: 0 | J19: =COUNT(J18) -> 0 | K19: =COUNT(K18) -> 0 | L19: =COUNT(L18) -> 0 | M19: =COUNT(M18) -> 0 | N19: =COUNT(N18) -> 0 | O19: =COUNT(O18) -> 0 | W19: =$J$17 -> 0 | X19: =$J$12 -> 0
B20: Años con datos | C20: =C12*C19 -> 0 | D20: =D12*D19 -> 0 | E20: 0 | F20: =F12*F19 -> 0 | G20: 0 | H20: 0 | I20: 0 | J20: 0 | K20: 0 | L20: 0 | M20: 0 | N20: 0 | O20: 0
C21: =C20^2 -> 0 | D21: =D20^2 -> 0 | E21: 0 | F21: 0 | G21: 0 | H21: 0 | I21: 0 | J21: 0 | K21: 0 | L21: 0 | M21: 0 | N21: 0 | O21: 0
W22: =$K$17 -> 0 | X22: =$K$12 -> 0
J23: =SUM(C15:O15) -> 0 | L23: =J23/J26 ->  | O23: =SUM(C20:O20) -> 0 | Q23: =O23/O26 ->  | W23: =$L$17 -> 0 | X23: =$L$12 -> 0
K24: = | P24: = | W24: =$M$17 -> 0 | X24: =$M$12 -> 0
W25: =$N$17 -> 0 | X25: =$N$12 -> 0
J26: =SUM(C19:O19) -> 0 | O26: =SUM(C19:O19) -> 0 | W26: =$O$17 -> 0 | X26: =$O$12 -> 0
W27: =$P$17 -> 1 | X27: =$P$12 -> 2024
H29: =SUM(C18:O18) -> 0 | J29: - | K29: =SUM(C19:O19) -> 0 | L29: * | M29: =Q23 ->  | N29: * | O29: =L23 ->  | Q29: =((H29-(K29*M29*O29))/(H32-(K32*M32))) -> 
P30: =
H32: =SUM(C21:O21) -> 0 | J32: - | K32: =K29 -> 0 | L32: * | M32: =Q23^2 -> 
G35: =L23 ->  | I35: =Q29 ->  | K35: =Q23 ->  | N35: =(G35-(I35*K35)) -> 
H36: - | J36: *
M41: Meta deseada
G42: =N35 ->  | I42: =Q29 ->  | K42: =VLOOKUP(1,$W$12:$X$27,2,0) -> 2024 | N42: =(G42+(I42*K42)) -> 
H43: + | J43: *
D48: 𝑦 ̂ | E48: Es el valor estimado de la meta. | I48: y | J48: Es el valor de las observaciones del indicador
D49: a | E49: Es el valor del origen de la recta. | I49: 𝑥 ̅ | J49: Es el promedio de la variable x.
D50: b | E50: Es el valor de la pendiente de la recta. | I50: 𝑦 ̅ | J50: Es el promedio de la variable y.
D51: x | E51: Es el valor que corresponde al periodo. | I51: n | J51: Es el número de observaciones.

Sheet Tend_FORMULA (hidden)
B2: Plantilla para cálculo de metas
B3: Método de tendencias
B5: Nombre del indicador:
B6: Nombre variable numerador:
B7: Nombre variable denominador:
B8: Método de cálculo
B9: Programa donde se le da seguimiento:
B10: Nivel del objetivo:
R11: Meta estimada | V11: Año | W11: LB | X11: Valor | Z11: Meta | AA11: Año
A12: Capturar | B12: Capturar años de los cuales se tienen valores | C12: 2010 | D12: 2011 | E12: 2012 | F12: 2013 | G12: 2014 | H12: 2015 | I12: 2016 | J12: 2017 | K12: 2018 | L12: 2019 | M12: 2020 | N12: 2021 | O12: 2022 | P12: 2023 | R12: =L32 ->  | V12: =$C$12 -> 2010 | W12: =$C$16 -> 0 | X12: =$C$15 -> 0 | Z12: =$C$17 -> 0 | AA12: =$C$12 -> 2010
A13: Capturar | B13: Capturar valores históricos del numerador y denominador. O si desea encontrar la meta estimada de un valor absoluto, deje en blanco estas casillas y sólo capture los valores en la siguiente fila. | V13: =$D$12 -> 2011 | W13: =$D$16 -> 0 | X13: =$D$15 -> 0 | Z13: =$D$17 -> 0 | AA13: =$D$12 -> 2011
A14: Capturar | V14: =$E$12 -> 2012 | W14: =$E$16 -> 0 | X14: =$E$15 -> 0 | Z14: =$E$17 -> 0 | AA14: =$E$12 -> 2012
A15: Capturar | B15: Capturar valores históricos o aplicar fórmula | R15: =Q30 ->  | V15: =$F$12 -> 2013 | W15: =$F$16 -> 0 | X15: =$F$15 -> 0 | Z15: =$F$17 -> 0 | AA15: =$F$12 -> 2013
A16: Capturar | B16: Poner un 1 en la línea base | V16: =$G$12 -> 2014 | W16: =$G$16 -> 0 | X16: =$G$15 -> 0 | Z16: =$G$17 -> 0 | AA16: =$G$12 -> 2014
A17: Capturar | B17: Poner un 1 debajo de la meta deseada | V17: =$H$12 -> 2015 | W17: =$H$16 -> 0 | X17: =$H$15 -> 0 | Z17: =$H$17 -> 0 | AA17: =$H$12 -> 2015
A18: Capturar | B18: Poner un 0 donde se seleccionó la LB, y capturar el valor consecutivo hacia atrás y hacia adelante debajo de los años donde haya valores | V18: =$I$12 -> 2016 | W18: =$I$16 -> 0 | X18: =$I$15 -> 0 | Z18: =$I$17 -> 0 | AA18: =$I$12 -> 2016
A19: Capturar | B19: Poner un "1" debajo de la LB, y poner un uno en las casillas subsecuentes hasta llegar al año de la meta deseada (también poner 1 debajo de la meta desada) | V19: =$J$12 -> 2017 | W19: =$J$16 -> 0 | X19: =$J$15 -> 0 | Z19: =$J$17 -> 0 | AA19: =$J$12 -> 2017
B20: Cálculos del numerador | C20: =C15*C18 -> 0 | D20: 0 | E20: 0 | F20: =F15*F18 -> 0 | G20: =G15*G18 -> 0 | H20: =H15*H18 -> 0 | I20: 0 | J20: 0 | K20: 0 | L20: 0 | M20: 0 | N20: 0 | O20: 0 | P20: 0 | V20: =$K$12 -> 2018 | W20: =$K$16 -> 0 | X20: =$K$15 -> 0 | Z20: =$K$17 -> 0 | AA20: =$K$12 -> 2018
B21: Cálculos del denominador | C21: =C18^2 -> 0 | D21: 0 | E21: 0 | F21: =F18^2 -> 0 | G21: 0 | H21: 0 | I21: 0 | J21: 0 | K21: 0 | L21: 0 | M21: 0 | N21: 0 | O21: 0 | P21: 0 | V21: =$L$12 -> 2019 | W21: =$L$16 -> 0 | X21: =$L$15 -> 0 | Z21: =$L$17 -> 0 | AA21: =$L$12 -> 2019
V22: =$M$12 -> 2020 | W22: =$M$16 -> 0 | X22: =$M$15 -> 0 | Z22: =$M$17 -> 0 | AA22: =$M$12 -> 2020
G23: =SUM(C20:P20) -> 0 | J23: =SUM(C19:P19) -> 0 | M23: =G23 -> 0 | O23: =J23 -> 0 | Q23: =((M23/M26)*(O23/O26)) ->  | V23: =$N$12 -> 2021 | W23: =$N$16 -> 0 | X23: =$N$15 -> 0 | Z23: =$N$17 -> 0 | AA23: =$N$12 -> 2021
N24: * | P24: = | V24: =$O$12 -> 2022 | W24: =$O$16 -> 0 | X24: =$O$15 -> 0 | Z24: =$O$17 -> 0 | AA24: =$O$12 -> 2022
V25: =$P$12 -> 2023 | W25: =$P$16 -> 0 | X25: =$P$15 -> 0 | Z25: =$P$17 -> 0 | AA25: =$P$12 -> 2023
G26: =SUM(C21:P21) -> 0 | J26: 2 | M26: =G26 -> 0 | O26: =J26 -> 2
Q29: Meta estimada
G30: =VLOOKUP(1,$W$12:$X$25,2,0) ->  | J30: =$Q$23 ->  | M30: =$G$30 ->  | O30: =$J$30 ->  | Q30: =M30+O30 -> 
N31: + | P31: =
L32: =VLOOKUP(1,$Z$12:$AA$25,2,0) -> 
L33: =CONCATENATE(D39, L32) -> 
D38: ∆ | E38: Cambio estimado del periodo de referencia | I38: 𝑦𝑏𝑎𝑠𝑒 | J38: Valor del indicador en el año base
D39: 𝑦 ̂ | E39: Valor del indicador esimado como meta | I39: z | J39: Valor de tiempo según año base
D40: 𝑦 | E40: Valor del indicador | I40: n | J40: Número de años desde el año base hasta el año a estimar

Sheet Incr_FORMULA (hidden)
B2: Plantilla para cálculo de metas
B3: Método Incremental
B5: Nombre del indicador:
B6: Nombre variable numerador:
B7: Nombre variable denominador:
B8: Método de cálculo
B9: Programa donde se le da seguimiento:
B10: Nivel del objetivo:
R11: Meta estimada | W11: Meta | X11: Año
A12: Capturar | B12: Capturar años de los cuales se tienen valores | C12: 2010 | D12: 2011 | E12: 2012 | F12: 2013 | G12: 2014 | H12: 2015 | I12: 2016 | J12: 2017 | K12: 2018 | L12: 2019 | M12: 2020 | N12: 2021 | O12: 2022 | P12: 2023 | R12: =G30+1 ->  | W12: =$C$17 -> 0 | X12: =$C$12 -> 2010
A13: Capturar | B13: Capturar valores históricos del numerador | W13: =$D$17 -> 0 | X13: =$D$12 -> 2011
A14: Capturar | B14: Capturar históricos del denominador | W14: =$E$17 -> 0 | X14: =$E$12 -> 2012
A15: Capturar | B15: Capturar valores históricos o aplicar fórmula | R15: =N35 ->  | W15: =$F$17 -> 0 | X15: =$F$12 -> 2013
A16: Capturar | B16: Poner un 1 en la línea base | W16: =$G$17 -> 0 | X16: =$G$12 -> 2014
A17: Capturar | B17: Poner un 1 debajo de la meta deseada | W17: =$H$17 -> 0 | X17: =$H$12 -> 2015
C18: =IF(C15, ((D15/C15)-1), " ") ->  | D18: =IF(D15, ((E15/D15)-1), " ") ->  | E18: =IF(E15, ((F15/E15)-1), " ") ->  | F18: =IF(F15, ((G15/F15)-1), " ") ->  | W18: =$I$17 -> 0 | X18: =$I$12 -> 2016
B19: T | C19: =COUNT(C18) -> 0 | D19: =COUNT(D18) -> 0 | E19: =COUNT(E18) -> 0 | F19: 0 | G19: 0 | H19: 0 | I19: 0 | J19: 0 | K19: 0 | L19: 0 | M19: 0 | N19: 0 | O19: 0 | P19: 0 | W19: =$J$17 -> 0 | X19: =$J$12 -> 2017
W20: =$K$17 -> 0 | X20: =$K$12 -> 2018
G21: =SUM(C18:P18)+1 -> 1 | I21: =G21/G24 -> -1 | W21: =$L$17 -> 0 | X21: =$L$12 -> 2019
H22: = | W22: =$M$17 -> 0 | X22: =$M$12 -> 2020
W23: =$N$17 -> 0 | X23: =$N$12 -> 2021
G24: =SUM(C19:P19)-1 -> -1 | W24: =$O$17 -> 0 | X24: =$O$12 -> 2022
W25: =$P$17 -> 0 | X25: =$P$12 -> 2023
H28: =LOOKUP(MAX(C15:P15)+1, C15:P15, C15:P15) ->  | L28: =$I$21 -> -1 | N28: 1 | P28: =L28+N28 -> 0
M29: + | O29: =
G30: =VLOOKUP(1,$W$12:$X$25,2,0)-1 -> 
G31: =CONCATENATE(D44, G30) -> 
N34: Meta deseada
J35: =H28 ->  | L35: =P28 -> 0 | N35: =J35*L35 -> 
K36: * | M36: =
D42: ∆ | E42: Tasa de variación de las observaciones | I42: y1, y0 | J42: Observaciones del indicador en diferentes periodos de tiempo
D43: Δ ̅ | E43: Promedio de tasa de variación | I43: T | J43: Número total de tasas de variaciones (número de periodos de los que se tiene información menos 1)
D44: 𝑦 ̂ | E44: Valor estimado como meta | I44: Yt-1 | J44: Valor del periodo inmediato anterior al que se estimará como meta

Sheet Lineal_FORMULA (hidden)
B2: Plantilla para cálculo de metas
B3: Extrapolación Lineal
B5: Nombre del indicador:
B6: Nombre variable numerador:
B7: Nombre variable denominador:
B8: Método de cálculo
B9: Programa donde se le da seguimiento:
B10: Nivel del objetivo:
R11: Meta estimada | W11: Meta | X11: Año
A12: Capturar | B12: Capturar años de los cuales se tienen valores | C12: 2010 | D12: 2011 | E12: 2012 | F12: 2013 | G12: 2014 | H12: 2015 | I12: 2016 | J12: 2017 | K12: 2018 | L12: 2019 | M12: 2020 | N12: 2021 | O12: 2022 | P12: 2023 | R12: =VLOOKUP(1,$W$12:$X$27,2,0) ->  | W12: =$C$17 -> 0 | X12: =$C$12 -> 2010
A13: Capturar | B13: Capturar valores históricos del numerador | W13: =$D$17 -> 0 | X13: =$D$12 -> 2011
A14: Capturar | B14: Capturar históricos del denominador | W14: =$E$17 -> 0 | X14: =$E$12 -> 2012
A15: Capturar | B15: Capturar valores históricos o aplicar fórmula | R15: =N42 ->  | W15: =$F$17 -> 0 | X15: =$F$12 -> 2013
A16: Capturar | B16: Poner un 1 en la línea base | W16: =$G$17 -> 0 | X16: =$G$12 -> 2014
A17: Capturar | B17: Poner un 1 debajo de la meta deseada | W17: =$H$17 -> 0 | X17: =$H$12 -> 2015
C18: =IF(C15, (C12*C15), " ") ->  | D18: =IF(D15, (D12*D15), " ") ->  | F18: =IF(F15, (F12*F15), " ") ->  | W18: =$I$17 -> 0 | X18: =$I$12 -> 2016
B19: n | C19: =COUNT(C15) -> 0 | D19: 0 | E19: 0 | F19: =COUNT(F15) -> 0 | G19: =COUNT(G15) -> 0 | H19: 0 | I19: 0 | J19: 0 | K19: 0 | L19: 0 | M19: 0 | N19: 0 | O19: 0 | P19: 0 | W19: =$J$17 -> 0 | X19: =$J$12 -> 2017
B20: Años con datos | C20: =C12*C19 -> 0 | D20: =D12*D19 -> 0 | E20: 0 | F20: =F12*F19 -> 0 | G20: 0 | H20: 0 | I20: 0 | J20: 0 | K20: 0 | L20: 0 | M20: 0 | N20: 0 | O20: 0 | P20: 0
C21: =C20^2 -> 0 | D21: =D20^2 -> 0 | E21: 0 | F21: 0 | G21: 0 | H21: 0 | I21: 0 | J21: 0 | K21: 0 | L21: 0 | M21: 0 | N21: 0 | O21: 0 | P21: 0
W22: =$K$17 -> 0 | X22: =$K$12 -> 2018
J23: =SUM(C15:P15) -> 0 | L23: =J23/J26 ->  | O23: =SUM(C20:P20) -> 0 | Q23: =O23/O26 ->  | W23: =$L$17 -> 0 | X23: =$L$12 -> 2019
K24: = | P24: = | W24: =$M$17 -> 0 | X24: =$M$12 -> 2020
W25: =$N$17 -> 0 | X25: =$N$12 -> 2021
J26: =SUM(C19:P19) -> 0 | O26: =SUM(C19:P19) -> 0 | W26: =$O$17 -> 0 | X26: =$O$12 -> 2022
W27: =$P$17 -> 0 | X27: =$P$12 -> 2023
H29: =SUM(C18:P18) -> 0 | J29: - | K29: =SUM(C19:P19) -> 0 | L29: * | M29: =Q23 ->  | N29: * | O29: =L23 ->  | Q29: =((H29-(K29*M29*O29))/(H32-(K32*M32))) -> 
P30: =
H32: =SUM(C21:P21) -> 0 | J32: - | K32: =K29 -> 0 | L32: * | M32: =Q23^2 -> 
G35: =L23 ->  | I35: =Q29 ->  | K35: =Q23 ->  | N35: =(G35-(I35*K35)) -> 
H36: - | J36: *
M41: Meta deseada
G42: =N35 ->  | I42: =Q29 ->  | K42: =VLOOKUP(1,$W$12:$X$27,2,0) ->  | N42: =(G42+(I42*K42)) -> 
H43: + | J43: *
D48: 𝑦 ̂ | E48: Es el valor estimado de la meta. | I48: y | J48: Es el valor de las observaciones del indicador
D49: a | E49: Es el valor del origen de la recta. | I49: 𝑥 ̅ | J49: Es el promedio de la variable x.
D50: b | E50: Es el valor de la pendiente de la recta. | I50: 𝑦 ̅ | J50: Es el promedio de la variable y.
D51: x | E51: Es el valor que corresponde al periodo. | I51: n | J51: Es el número de observaciones.

Sheet PASO_3
B5: Plantilla para cálculo de metas
B7: Datos del indicador
B9: Nombre del indicador: | G9: =PASO_1!$E$9 -> 0
B10: Nombre variable numerador: | G10: =PASO_1!$E$10 -> 0
B11: Nombre variable denominador: | G11: =PASO_1!$E$11 -> 0
B12: Método de cálculo | G12: =PASO_1!$E$12 -> 0
B13: Programa donde se le da seguimiento: | G13: =PASO_1!$E$13 -> 0
B14: Nivel del objetivo: | G14: =PASO_1!$E$14 -> 0
B16: Método implementado para calcular meta
B18: 1 | C18: ¿Cuál fue la línea base seleccionada? | G18: Año | H18: 2021 | I18: Varlor numerador | L18: =VLOOKUP(H18,Hoja2!H4:K16,2,0) ->  | M18: Varlor denominador | P18: =VLOOKUP(H18,Hoja2!H4:K16,3,0) ->  | Q18: Resultado Indicador | S18: =VLOOKUP(H18,Hoja2!H4:K16,4,0) -> 
B20: 2 | C20: ¿Cuál fue el método utilizado para estimar la meta? | G20: Método incremental
B23: Línea Base | G23: Meta estimada con método estadístico | L23: =P33 -> 2024 | N23: Meta estimada con otro método | S23: =P33 -> 2024
B24: Valor numerador | D24: =L18 ->  | E24: =H18 -> 2021 | G24: Numerador | N24: Numerador | Q24: =VLOOKUP(G20,Hoja2!D7:E9,2,0) ->  | R24: =Q24 -> 
B25: Valor denominador | D25: =P18 ->  | G25: Denominador | N25: Denominador
B26: Resultado indicador | D26: =S18 ->  | G26: Meta del indicador (Valor relativo o valor absoluto) | K26: =P36 ->  | N26: Meta del indicador (Valor relativo o valor absoluto)
B28: Justificación de selección de meta por método alternativo
D31: Visualizador gráfico de datos | P31: META con método estadístico | Q31: META con otro método
C33: =PASO_1!C49 -> 0 | D33: =PASO_1!D49 -> 0 | E33: =PASO_1!E49 -> 0 | F33: =PASO_1!F49 -> 0 | G33: =PASO_1!G49 -> 0 | H33: =PASO_1!H49 -> 0 | I33: =PASO_1!I49 -> 0 | J33: =PASO_1!J49 -> 0 | K33: =PASO_1!K49 -> 0 | L33: =PASO_1!L49 -> 0 | M33: =PASO_1!M49 -> 0 | N33: =PASO_1!N49 -> 0 | O33: =PASO_1!O49 -> 0 | P33: =PASO_1!P49 -> 2024 | Q33: =PASO_1!P49 -> 2024
C34: =PASO_1!C50 -> 0 | D34: =PASO_1!D50 -> 0 | E34: =PASO_1!E50 -> 0 | F34: =PASO_1!F50 -> 0 | G34: =PASO_1!G50 -> 0 | H34: =PASO_1!H50 -> 0 | I34: =PASO_1!I50 -> 0 | J34: =PASO_1!J50 -> 0 | K34: =PASO_1!K50 -> 0 | L34: =PASO_1!L50 -> 0 | M34: =PASO_1!M50 -> 0 | N34: =PASO_1!N50 -> 0 | O34: =PASO_1!O50 -> 0 | Q34: =S24 -> 0
C35: =PASO_1!C51 -> 0 | D35: =PASO_1!D51 -> 0 | E35: =PASO_1!E51 -> 0 | F35: =PASO_1!F51 -> 0 | G35: =PASO_1!G51 -> 0 | H35: =PASO_1!H51 -> 0 | I35: =PASO_1!I51 -> 0 | J35: =PASO_1!J51 -> 0 | K35: =PASO_1!K51 -> 0 | L35: =PASO_1!L51 -> 0 | M35: =PASO_1!M51 -> 0 | N35: =PASO_1!N51 -> 0 | O35: =PASO_1!O51 -> 0 | Q35: =S25 -> 0
C36: =PASO_1!C52 -> 0 | D36: =PASO_1!D52 -> 0 | E36: =PASO_1!E52 -> 0 | F36: =PASO_1!F52 -> 0 | G36: =PASO_1!G52 -> 0 | H36: =PASO_1!H52 -> 0 | I36: =PASO_1!I52 -> 0 | J36: =PASO_1!J52 -> 0 | K36: =PASO_1!K52 -> 0 | L36: =PASO_1!L52 -> 0 | M36: =PASO_1!M52 -> 0 | N36: =PASO_1!N52 -> 0 | O36: =PASO_1!O52 -> 0 | P36: =VLOOKUP(G20,Hoja2!D4:E6,2,0) ->  | Q36: =S26 -> 0
B63: Plantilla elaborada por el Departamento de Evaluación a partir de la información contenida en la Guía para el establecimiento y cálculo de línea base y metas del CONEVAL (pg. 19-33) https://www.coneval.org.mx/coordinacion/Documents/monitoreo/metodologia/guia_lineas_base_metas.pdf

Sheet Tend_Ej.
B3: Método de tendencias (EJEMPLO)
P4: META | V4: Año | W4: LB | X4: Valor | Z4: Meta | AA4: Año
A5: Capturar | B5: Capturar años de los cuales se tienen valores | K5: 2013 | L5: 2014 | M5: 2015 | N5: 2016 | O5: 2017 | P5: 2018 | V5: =$C$5 -> 0 | W5: =$C$9 -> 0 | X5: =$C$8 -> 0 | Z5: =$C$10 -> 0 | AA5: =$C$5 -> 0
A6: Capturar | B6: Capturar valores históricos del numerador y denominador. O si desea encontrar la meta estimada de un valor absoluto, deje en blanco estas casillas y sólo capture los valores en la siguiente fila. | V6: =$D$5 -> 0 | W6: =$D$9 -> 0 | X6: =$D$8 -> 0 | Z6: =$D$10 -> 0 | AA6: =$D$5 -> 0
A7: Capturar | V7: =$E$5 -> 0 | W7: =$E$9 -> 0 | X7: =$E$8 -> 0 | Z7: =$E$10 -> 0 | AA7: =$E$5 -> 0
A8: Capturar | B8: Capturar valores históricos o aplicar fórmula | K8: 98.1 | L8: 101.5 | M8: 107.6 | N8: 113.5 | O8: 117.2 | P8: =Q23 -> 117.64 | V8: =$F$5 -> 0 | W8: =$F$9 -> 0 | X8: =$F$8 -> 0 | Z8: =$F$10 -> 0 | AA8: =$F$5 -> 0
A9: Capturar | B9: Poner un 1 en la línea base | M9: 1 | V9: =$G$5 -> 0 | W9: =$G$9 -> 0 | X9: =$G$8 -> 0 | Z9: =$G$10 -> 0 | AA9: =$G$5 -> 0
A10: Capturar | B10: Poner un 1 debajo de la meta deseada | P10: 1 | V10: =$H$5 -> 0 | W10: =$H$9 -> 0 | X10: =$H$8 -> 0 | Z10: =$H$10 -> 0 | AA10: =$H$5 -> 0
A11: Capturar | B11: Poner un 0 donde se seleccionó la LB, y capturar el valor consecutivo hacia atrás y hacia adelante debajo de los años donde haya valores | K11: -2 | L11: -1 | M11: 0 | N11: 1 | O11: 2 | V11: =$I$5 -> 0 | W11: =$I$9 -> 0 | X11: =$I$8 -> 0 | Z11: =$I$10 -> 0 | AA11: =$I$5 -> 0
A12: Capturar | B12: Poner un "1" debajo de la LB, y poner un uno en las casillas subsecuentes hasta llegar al año de la meta deseada (también poner 1 debajo de la meta desada) | M12: 1 | N12: 1 | O12: 1 | P12: 1 | V12: =$J$5 -> 0 | W12: =$J$9 -> 0 | X12: =$J$8 -> 0 | Z12: =$J$10 -> 0 | AA12: =$J$5 -> 0
B13: Cálculos del numerador | C13: =C8*C11 -> 0 | D13: 0 | E13: 0 | F13: =F8*F11 -> 0 | G13: 0 | H13: 0 | I13: 0 | J13: 0 | K13: -196.2 | L13: =L8*L11 -> -101.5 | M13: 0 | N13: 113.5 | O13: 234.4 | P13: 0 | V13: =$K$5 -> 2013 | W13: =$K$9 -> 0 | X13: =$K$8 -> 98.1 | Z13: =$K$10 -> 0 | AA13: =$K$5 -> 2013
B14: Cálculos del denominador | C14: =C11^2 -> 0 | D14: 0 | E14: 0 | F14: =F11^2 -> 0 | G14: 0 | H14: 0 | I14: 0 | J14: 0 | K14: 4 | L14: 1 | M14: 0 | N14: 1 | O14: 4 | P14: 0 | V14: =$L$5 -> 2014 | W14: =$L$9 -> 0 | X14: =$L$8 -> 101.5 | Z14: =$L$10 -> 0 | AA14: =$L$5 -> 2014
V15: =$M$5 -> 2015 | W15: =$M$9 -> 1 | X15: =$M$8 -> 107.6 | Z15: =$M$10 -> 0 | AA15: =$M$5 -> 2015
G16: =SUM(C13:O13) -> 50.2 | J16: =SUM(C12:P12) -> 4 | M16: =G16 -> 50.2 | O16: =J16 -> 4 | Q16: =((M16/M19)*(O16/O19)) -> 10.04 | V16: =$N$5 -> 2016 | W16: =$N$9 -> 0 | X16: =$N$8 -> 113.5 | Z16: =$N$10 -> 0 | AA16: =$N$5 -> 2016
N17: * | P17: = | V17: =$O$5 -> 2017 | W17: =$O$9 -> 0 | X17: =$O$8 -> 117.2 | Z17: =$O$10 -> 0 | AA17: =$O$5 -> 2017
V18: =$P$5 -> 2018 | W18: =$P$9 -> 0 | X18: =$P$8 -> 117.64 | Z18: =$P$10 -> 1 | AA18: =$P$5 -> 2018
G19: =SUM(C14:O14) -> 10 | J19: 2 | M19: =G19 -> 10 | O19: =J19 -> 2
Q22: Meta estimada
G23: =VLOOKUP(1,$W$5:$X$18,2,0) -> 107.6 | J23: =$Q$16 -> 10.04 | M23: =$G$23 -> 107.6 | O23: =$J$23 -> 10.04 | Q23: =M23+O23 -> 117.64
N24: + | P24: =
L25: =VLOOKUP(1,$Z$5:$AA$18,2,0) -> 2018
L26: =CONCATENATE(D32, L25) -> 𝑦 ̂2018
D31: ∆ | E31: Cambio estimado del periodo de referencia | I31: 𝑦𝑏𝑎𝑠𝑒 | J31: Valor del indicador en el año base
D32: 𝑦 ̂ | E32: Valor del indicador esimado como meta | I32: z | J32: Valor de tiempo según año base
D33: 𝑦 | E33: Valor del indicador | I33: n | J33: Número de años desde el año base hasta el año a estimar

Sheet Incr_Ej.
B3: Método Incremental (EJEMPLO)
P4: META | W4: Meta | X4: Año
A5: Capturar | B5: Capturar años de los cuales se tienen valores | K5: 2013 | L5: 2014 | M5: 2015 | N5: 2016 | O5: 2017 | P5: 2018 | W5: =$C$10 -> 0 | X5: =$C$5 -> 0
A6: Capturar | B6: Capturar valores históricos del numerador | P6: x | W6: =$D$10 -> 0 | X6: =$D$5 -> 0
A7: Capturar | B7: Capturar históricos del denominador | P7: x | W7: =$E$10 -> 0 | X7: =$E$5 -> 0
A8: Capturar | B8: Capturar valores históricos o aplicar fórmula | K8: 58.4 | L8: 57.8 | M8: 58 | N8: 57.1 | O8: 56.9 | P8: =N28 -> 56.53251657 | W8: =$F$10 -> 0 | X8: =$F$5 -> 0
A9: Capturar | B9: Poner un 1 en la línea base | M9: 1 | W9: =$G$10 -> 0 | X9: =$G$5 -> 0
A10: Capturar | B10: Poner un 1 debajo de la meta deseada | P10: 1 | W10: =$H$10 -> 0 | X10: =$H$5 -> 0
C11: =IF(C8, ((D8/C8)-1), " ") ->  | D11: =IF(D8, ((E8/D8)-1), " ") ->  | E11: =IF(E8, ((F8/E8)-1), " ") ->  | K11: -0.0102739726 | L11: 0.003460207612 | M11: -0.01551724138 | N11: -0.00350262697 | O11: x | P11: x | W11: =$I$10 -> 0 | X11: =$I$5 -> 0
B12: T | C12: =COUNT(C11) -> 0 | D12: =COUNT(D11) -> 0 | E12: =COUNT(E11) -> 0 | F12: 0 | G12: 0 | H12: 0 | I12: 0 | J12: 0 | K12: 1 | L12: 1 | M12: 1 | N12: 1 | O12: x | P12: x | W12: =$J$10 -> 0 | X12: =$J$5 -> 0
W13: =$K$10 -> 0 | X13: =$K$5 -> 2013
G14: =SUM(C11:N11) -> -0.02583363334 | I14: =G14/G17 -> -0.006458408335 | W14: =$L$10 -> 0 | X14: =$L$5 -> 2014
H15: = | W15: =$M$10 -> 0 | X15: =$M$5 -> 2015
W16: =$N$10 -> 0 | X16: =$N$5 -> 2016
G17: =SUM(C12:N12) -> 4 | W17: =$O$10 -> 0 | X17: =$O$5 -> 2017
W18: =$P$10 -> 1 | X18: =$P$5 -> 2018
H21: =LOOKUP(MAX(C8:O8)+1, C8:O8, C8:O8) -> 56.9 | L21: =$I$14 -> -0.006458408335 | N21: 1 | P21: =L21+N21 -> 0.9935415917
M22: + | O22: =
G23: =VLOOKUP(1,$W$5:$X$18,2,0)-1 -> 2017
G24: =CONCATENATE(D37, G23) -> 𝑦 ̂2017
N27: Meta estimada
J28: =H21 -> 56.9 | L28: =P21 -> 0.9935415917 | N28: =J28*L28 -> 56.53251657
K29: * | M29: =
D35: ∆ | E35: Tasa de variación de las observaciones | I35: y1, y0 | J35: Observaciones del indicador en diferentes periodos de tiempo
D36: Δ ̅ | E36: Promedio de tasa de variación | I36: T | J36: Número total de tasas de variaciones (número de periodos de los que se tiene información menos 1)
D37: 𝑦 ̂ | E37: Valor estimado como meta | I37: Yt-1 | J37: Valor del periodo inmediato anterior al que se estimará como meta

Sheet Lineal_Ej.
B3: Extrapolación Lineal (EJEMPLO)
P4: META | W4: Meta | X4: Año
A5: Capturar | B5: Capturar años de los cuales se tienen valores | K5: 2013 | L5: 2014 | M5: 2015 | N5: 2016 | O5: 2017 | P5: 2018 | W5: =$C$10 -> 0 | X5: =$C$5 -> 0
A6: Capturar | B6: Capturar valores históricos del numerador | P6: x | W6: =$D$10 -> 0 | X6: =$D$5 -> 0
A7: Capturar | B7: Capturar históricos del denominador | P7: x | W7: =$E$10 -> 0 | X7: =$E$5 -> 0
A8: Capturar | B8: Capturar valores históricos o aplicar fórmula | K8: 5.3 | M8: 4.9 | N8: 4.8 | O8: 4.7 | P8: =N35 -> 4.508571429 | W8: =$F$10 -> 0 | X8: =$F$5 -> 0
A9: Capturar | B9: Poner un 1 en la línea base | M9: 1 | W9: =$G$10 -> 0 | X9: =$G$5 -> 0
A10: Capturar | B10: Poner un 1 debajo de la meta deseada | P10: 1 | W10: =$H$10 -> 0 | X10: =$H$5 -> 0
C11: =IF(C8, (C5*C8), " ") ->  | D11: =IF(D8, (D5*D8), " ") ->  | K11: 10668.9 | M11: 9873.5 | N11: 9676.8 | O11: 9479.9 | W11: =$I$10 -> 0 | X11: =$I$5 -> 0
B12: n | C12: =COUNT(C8) -> 0 | D12: 0 | E12: 0 | K12: 1 | L12: 0 | M12: 1 | N12: 1 | O12: 1 | W12: =$J$10 -> 0 | X12: =$J$5 -> 0
B13: Años con datos | C13: =C5*C12 -> 0 | D13: =D5*D12 -> 0 | E13: 0 | K13: 2013 | L13: 0 | M13: 2015 | N13: 2016 | O13: 2017
C14: =C13^2 -> 0 | D14: =D13^2 -> 0 | E14: 0 | K14: 4052169 | L14: 0 | M14: 4060225 | N14: 4064256 | O14: 4068289
W15: =$K$10 -> 0 | X15: =$K$5 -> 2013
J16: =SUM(C8:O8) -> 19.7 | L16: =J16/J19 -> 4.925 | O16: =SUM(C13:O13) -> 8061 | Q16: =O16/O19 -> 2015.25 | W16: =$L$10 -> 0 | X16: =$L$5 -> 2014
K17: = | P17: = | W17: =$M$10 -> 0 | X17: =$M$5 -> 2015
W18: =$N$10 -> 0 | X18: =$N$5 -> 2016
J19: =SUM(C12:O12) -> 4 | O19: =SUM(C12:O12) -> 4 | W19: =$O$10 -> 0 | X19: =$O$5 -> 2017
W20: =$P$10 -> 1 | X20: =$P$5 -> 2018
H22: =SUM(C11:O11) -> 39699.1 | J22: - | K22: =SUM(C12:O12) -> 4 | L22: * | M22: =Q16 -> 2015.25 | N22: * | O22: =L16 -> 4.925 | Q22: =((H22-(K22*M22*O22))/(H25-(K25*M25))) -> -0.1514285714
P23: =
H25: =SUM(C14:O14) -> 16244939 | J25: - | K25: =K22 -> 4 | L25: * | M25: =Q16^2 -> 4061232.562
G28: =L16 -> 4.925 | I28: =Q22 -> -0.1514285714 | K28: =Q16 -> 2015.25 | N28: =(G28-(I28*K28)) -> 310.0914286
H29: - | J29: *
M34: Meta deseada
G35: =N28 -> 310.0914286 | I35: =Q22 -> -0.1514285714 | K35: =VLOOKUP(1,$W$5:$X$20,2,0) -> 2018 | N35: =(G35+(I35*K35)) -> 4.508571429
H36: + | J36: *
D41: 𝑦 ̂ | E41: Es el valor estimado de la meta. | I41: y | J41: Es el valor de las observaciones del indicador
D42: a | E42: Es el valor del origen de la recta. | I42: 𝑥 ̅ | J42: Es el promedio de la variable x.
D43: b | E43: Es el valor de la pendiente de la recta. | I43: 𝑦 ̅ | J43: Es el promedio de la variable y.
D44: x | E44: Es el valor que corresponde al periodo. | I44: n | J44: Es el número de observaciones.

Sheet Hoja2 (hidden)
D3: Tipos de métodos para definir meta
D4: Método de tendencias | E4: =Tend.!P15 ->  | H4: =PASO_1!$C49 -> 0 | I4: =PASO_1!$C50 -> 0 | J4: =PASO_1!$C51 -> 0 | K4: =PASO_1!$C52 -> 0
D5: Método incremental | E5: =Incr.!P15 ->  | H5: =PASO_1!$D49 -> 0 | I5: =PASO_1!$D50 -> 0 | J5: =PASO_1!$D51 -> 0 | K5: =PASO_1!$D52 -> 0
D6: Método lineal | E6: =Lineal!P15 ->  | H6: =PASO_1!$E49 -> 0 | I6: =PASO_1!$E50 -> 0 | J6: =PASO_1!$E51 -> 0 | K6: =PASO_1!$E52 -> 0
D7: Referente internacional | E7: CAPTURAR | H7: =PASO_1!$F49 -> 0 | I7: =PASO_1!$F50 -> 0 | J7: =PASO_1!$F51 -> 0 | K7: =PASO_1!$F52 -> 0
D8: Método Delphi | E8: CAPTURAR | H8: =PASO_1!$G49 -> 0 | I8: =PASO_1!$G50 -> 0 | J8: =PASO_1!$G51 -> 0 | K8: =PASO_1!$G52 -> 0
D9: Método alternativo | E9: CAPTURAR | H9: =PASO_1!$H49 -> 0 | I9: =PASO_1!$H50 -> 0 | J9: =PASO_1!$H51 -> 0 | K9: =PASO_1!$H52 -> 0
H10: =PASO_1!$I49 -> 0 | I10: =PASO_1!$I50 -> 0 | J10: =PASO_1!$I51 -> 0 | K10: =PASO_1!$I52 -> 0
H11: =PASO_1!$J49 -> 0 | I11: =PASO_1!$J50 -> 0 | J11: =PASO_1!$J51 -> 0 | K11: =PASO_1!$J52 -> 0
H12: =PASO_1!$K49 -> 0 | I12: =PASO_1!$K50 -> 0 | J12: =PASO_1!$K51 -> 0 | K12: =PASO_1!$K52 -> 0
H13: =PASO_1!$L49 -> 0 | I13: =PASO_1!$L50 -> 0 | J13: =PASO_1!$L51 -> 0 | K13: =PASO_1!$L52 -> 0
H14: =PASO_1!$M49 -> 0 | I14: =PASO_1!$M50 -> 0 | J14: =PASO_1!$M51 -> 0 | K14: =PASO_1!$M52 -> 0
H15: =PASO_1!$N49 -> 0 | I15: =PASO_1!$N50 -> 0 | J15: =PASO_1!$N51 -> 0 | K15: =PASO_1!$N52 -> 0
H16: =PASO_1!$O49 -> 0 | I16: =PASO_1!$O50 -> 0 | J16: =PASO_1!$O51 -> 0 | K16: =PASO_1!$O52 -> 0

Sheet Hoja9 (hidden)
C3: Completa | D3: Se puede utilizar alguno de estos métodos para estimar la meta | E3: Método de tendencias | F3: El método de tendencias permite realizar análisis de las observaciones pasadas y generar valores futuros, a partir de la tendencia observada. En particular, este método se basa en la tendencia de los datos en los periodos anteriores al que se desea pronosticar. La estimación por este método se realiza en dos etapas; primero, se calcula el cambio esperado, considerando la tendencia de los datos y un periodo base, posteriormente con este se calcula el valor proyectado, el cual servirá como meta El uso del método de tendencias se recomienda cuando se cuenta con una serie de observaciones pasadas y se necesita realizar una estimación del valor del indicador a futuro. En ese sentido, vale la pena tomar en consideración lo siguiente: 1. Las observaciones deben tener la misma periodicidad y ser equidistantes. 2. Se debe contar con observaciones inmediatas anteriores al periodo a estimar. No deben existir huecos de información. | G3: Método incremental | H3: Es un método estadístico utilizado para la proyección de valores futuros, y que al igual que el método de tendencias, utiliza información pasada del indicador. El método incremental se basa en las variaciones promedio de la información de periodos anteriores. Para implementarlo, primero se calculan las tasas de variación de las observaciones anteriores; posteriormente se obtiene su promedio, y finalmente, con estos resultados, se estima la meta. El uso del método incremental se recomienda cuando las observaciones de los indicadores no cuentan con una tendencia clara, es decir, los datos podrían tener una trayectoria errática. Al utilizar esta técnica, es necesario considerar lo siguiente: 1. Los datos podrían no presentar una tendencia ascendente. Si bien el método se denomina incremental, las observaciones para su cálculo no necesariamente deben presentar esa tendencia. Al generalizar los cambios de las observaciones, el método puede ser usado para distintos escenarios. 2. Se requiere el mayor número de observaciones posibles. Para lograr una estimación más acertada del valor a pronosticar, se requiere el uso del mayor número de observaciones posible. Si se tiene un número reducido de observaciones, el valor estimado podría no ser representativo del valor que se busca aproximar. 3. Las observaciones deben tener la misma periodicidad y ser equidistantes.
C4: Incompleta | D4: Se puede utilizar alguno de estos métodos para estimar la meta | E4: Método lineal | F4: La extrapolación lineal es un método que se basa en el conocimiento a priori de las observaciones existentes y se usa para estimar cómo se comportará la observación faltante o futura. La aplicación de este método tiene como objetivo estimar la ecuación de la recta para predecir el comportamiento futuro de un indicador; para ello, es necesario calcular la pendiente (b) y ordenada al origen de la recta (a). Finalmente, con esos datos es posible estimar el valor de la meta (y� ̂). El uso de la extrapolación lineal se recomienda en escenarios donde se cuenta con cierta información histórica del indicador en cuestión y se necesita hacer un pronóstico. Para poder hacer uso de la extrapolación lineal, se deben tomar en cuenta las siguientes condiciones: 1. Los datos deben mostrar una tendencia lineal. Al hacer una gráfica de dispersión con las observaciones de periodos anteriores, estos deben mostrar necesariamente una tendencia cercana o igual a la lineal. 2. Las observaciones deben mantener la misma periodicidad y ser equidistantes. 3. Se debe tener información de observaciones cercanas a la que se pretende estimar. Para la estimación de metas de mediano y largo plazo, (como sexenales). se podría realizar una extrapolación si se cuenta con al menos la misma cantidad de observaciones pasadas de las que se quieren pronosticar. 4. Se debe considerar la mayor cantidad de información posible. Se debe verificar que los datos faltantes no correspondan a observaciones consecutivas. | G4: Referente internacional | H4: Se propone que la definición de metas a partir de agendas internacionales siga un análisis comparativo de las condiciones con otros países. Para realizar un análisis comparativo y poder establecer una meta, se sugiere seguir, como mínimo los siguientes pasos: 1. Selección del indicador a comparar. Una vez establecido lo que se quiere medir, se debe realizar una revisión de la literatura internacional en la cual se indaguen posibles indicadores que den cuenta del objetivo. Los indicadores por comparar deben mantener ciertas características comunes a través de las regiones que refieren su comparación; por ejemplo, fórmulas de cálculo y periodicidad homogéneas. 2. Selección de posibles regiones o países para su comparación. La selección debe considerar países o regiones con características similares o mejores condiciones que las del país en referencia, estableciendo como meta lo alcanzado por los otros países. 3. Análisis de los resultados del indicador. Una vez que se definió la comparabilidad del indicador, es posible revisar los resultados que obtuvieron los países o regiones seleccionados. En este punto se recopila y revisa la información más reciente del indicador. 4. Valoración de las capacidades de la intervención. Es necesario hacer una reflexión de los alcances de la intervención. A través del conocimiento de sus recursos humanos, financieros, materiales, entre otros, se debe hacer un análisis prospectivo de los logros que se esperan alcanzar. 5. Selección de la meta a alcanzar. Derivado de la revisión se obtiene una serie de posibles metas a elegir, además de contar con diferentes expectativas de la propia intervención.
C5: Inexistente | D5: Se puede utilizar alguno de estos métodos para estimar la meta | E5: Método Delphi | F5: El estudio Delphi es una técnica prospectiva de naturaleza subjetiva, la cual, busca un consenso entre un grupo de expertos a través de encuestas o cuestionarios sucesivos sobre algún tema en particular. Este método se utiliza cuando no se puede emplear información objetiva, o bien, que al momento no puede ser medible o que el medirla resulta demasiado costoso. Por otro lado, se caracteriza por ser un proceso iterativo, en el cual se mantiene el anonimato de los participantes y en el que todas las opiniones forman parte de una respuesta final. Si bien el uso de esta técnica está más relacionado con los análisis cualitativos, se puede emplear en procesos que necesiten conocer la probabilidad del logro de metas, o incluso para su posible ajuste. | G5: Método alternativo | H5: Aunque de manera informal, si la relevancia del indicador lo permite, se puede estimar una meta con base en información interna, experiencia del personal, entre otras, para que con la información generada durante el primer año pueda definirse una meta más acertada para el segundo año.
